fUST/lending_fUST_20251003
["ID","MTS","AMOUNT","RATE_DAILY","PERIOD"]
[388875348,1759453982502,-184.01,0.00018281,2]
[388875349,1759453982617,-315.99,0.00018281,2]
[388875350,1759453982645,-1128.97,0.00018281,2]
[388875351,1759453982672,-1165.84,0.00018281,2]
[388875352,1759453982698,-592.13,0.00018281,2]
[388875353,1759453982726,-1260.87,0.00018281,2]
[388875354,1759453982754,-155.8902847,0.00018281,2]
[388875355,1759453982781,-320.53413103,0.00018281,2]
[388875356,1759453983153,-108.85005769,0.00018182,2]
[388875357,1759453983167,-191.14994231,0.00018182,2]
[388875358,1759453983176,-974.69005769,0.00018281,2]
[388875359,1759453983194,-592.13,0.00018281,2]
[388875360,1759453983208,-1260.87,0.00018281,2]
[388875361,1759453983221,-35.42994231,0.00018281,2]
[388875362,1759453983231,-120.46034239,0.00018281,2]
[388875363,1759453983245,-227.29522538,0.00018281,2]
[388875364,1759453983259,-93.23890565,0.00018281,2]
[388875365,1759453983272,-119.56116854,0.00018281,2]
[388875366,1759453983458,-189.66376071,0.00018281,2]
[388875367,1759453983495,-542.43847455,0.00018281,2]
[388875368,1759453983526,-500.0,0.00018281,2]
[388875369,1759453983556,-627.84361438,0.00018281,2]
[388875370,1759453983584,-500.0,0.00018281,2]
[388875371,1759453983612,-500.0,0.00018281,2]
[388875372,1759453983639,-883.93,0.00018282,2]
[388875373,1759453983667,-875.41,0.00018282,2]
[388875374,1759453983695,-261.43830072,0.00018282,2]
[388875375,1759453983740,-238.56169928,0.00018282,2]
[388875376,1759453983769,-1522.44,0.00018282,2]
[388875377,1759453983796,-1778.01,0.00018282,2]
[388875378,1759453983822,-500.0,0.00018282,2]
[388875379,1759453983849,-582.76,0.00018282,2]
[388875380,1759453983979,-1573.89,0.00018282,2]
[388875381,1759453984007,-3338.56,0.00018282,2]
[388875382,1759453984455,-500.0,0.00018282,2]
[388875383,1759453984464,-495.02830072,0.00018282,2]
[388875384,1759453984477,-4.97169928,0.00018282,2]
[388875385,1759453984486,-170.13830072,0.00018282,2]
[388875386,1759453986969,-489.13169928,0.00018282,2]
[388875387,1759453986998,-508.2,0.00018282,2]
[388875388,1759453987026,-604.48,0.00018282,2]
[388875389,1759453987054,-500.0,0.00018282,2]
[388875390,1759453987088,-1414.46,0.00018282,2]
[388875391,1759453987117,-654.32660144,0.00018282,2]
[388875392,1759453987222,-1658.81339856,0.00018282,2]
[388875393,1759453987254,-1164.78,0.00018282,2]
[388875394,1759453987283,-342.77904006,0.00018283,2]
[388875395,1759453987315,-479.658648,0.00018283,2]
[388875396,1759453987345,-479.658648,0.00018283,2]
[388875397,1759453987372,-479.658648,0.00018283,2]
[388875398,1759453987400,-289.31323476,0.00018283,2]
[388875399,1759453987534,-210.68676524,0.00018283,2]
[388875400,1759453987543,-199.49610256,0.00018283,2]
[388875401,1759453987557,-300.50389744,0.00018283,2]
[388875402,1759453987566,-179.15475056,0.00018283,2]
[388875403,1759453987579,-300.50389744,0.00018283,2]
[388875404,1759453987588,-179.15475056,0.00018283,2]
[388875405,1759453987606,-300.50389744,0.00018283,2]
[388875406,1759453987615,-199.49610256,0.00018283,2]
[388875407,1759453989400,-688.0,0.00018282,2]
[388875408,1759453989430,-280.16254544,0.00018283,2]
[388875409,1759453989458,-479.658648,0.00018283,2]
[388875410,1759453989486,-479.658648,0.00018283,2]
[388875411,1759453989514,-479.658648,0.00018283,2]
[388875412,1759453989541,-479.658648,0.00018283,2]
[388875413,1759453989570,-479.658648,0.00018283,2]
[388875414,1759453989596,-479.658648,0.00018283,2]
[388875415,1759453989623,-479.658648,0.00018283,2]
[388875416,1759453989649,-479.658648,0.00018283,2]
[388875417,1759453989745,-479.658638,0.00018283,2]
[388875418,1759453989773,-500.0,0.00018283,2]
[388875419,1759453989801,-1274.98,0.00018283,2]
[388875420,1759453989829,-500.0,0.00018283,2]
[388875421,1759453989858,-500.0,0.00018283,2]
[388875422,1759453989887,-500.0,0.00018283,2]
[388875423,1759453989916,-500.0,0.00018283,2]
[388875424,1759453989944,-280.0,0.00018283,2]
[388875425,1759453989972,-430.732724,0.00018283,2]
[388875426,1759453990104,-69.267276,0.00018283,2]
[388875427,1759453990133,-500.0,0.00018283,2]
[388875428,1759453990161,-611.36,0.00018283,2]
[388875429,1759453990191,-500.0,0.00018283,2]
[388875430,1759453990219,-500.0,0.00018283,2]
[388875431,1759453990254,-192.03,0.00018283,2]
[388875432,1759453990284,-664.16,0.00018283,2]
[388875433,1759453990313,-1883.3,0.00018283,2]
[388875434,1759453990396,-500.0,0.00018283,2]
[388875435,1759453990424,-151.0,0.00018283,2]
[388875436,1759453990452,-151.0,0.00018283,2]
[388875437,1759453990481,-151.0,0.00018283,2]
[388875438,1759453990512,-151.0,0.00018283,2]
[388875439,1759453990541,-500.0,0.00018283,2]
[388875440,1759453990569,-500.0,0.00018283,2]
[388875441,1759453990938,-845.01,0.00018283,2]
[388875442,1759453991066,-1690.02,0.00018283,2]
[388875443,1759453991795,-3939.022724,0.00018283,2]
[388875444,1759453991889,-2680.947276,0.00018283,2]
[388875445,1759453991899,-500.0,0.00018283,2]
[388875446,1759453991908,-1043.27,0.00018283,2]
[388875447,1759453991918,-500.0,0.00018283,2]
[388875448,1759453991927,-500.0,0.00018283,2]
[388875449,1759453991936,-1482.55,0.00018283,2]
[388875450,1759453991946,-2195.27,0.00018283,2]
[388875451,1759453991955,-177.23683412,0.00018283,2]
[388875452,1759453991965,-75.72588988,0.00018283,2]
[388875453,1759453991992,-2258.37,0.00018281,2]
[388875454,1759453992002,-424.27411012,0.00018283,2]
[388875455,1759453992013,-1310.36,0.00018283,2]
[388875456,1759453992022,-500.0,0.00018283,2]
[388875457,1759453992032,-500.0,0.00018283,2]
[388875458,1759453992041,-500.0,0.00018283,2]
[388875459,1759453992051,-500.0,0.00018283,2]
[388875460,1759453992061,-500.0,0.00018283,2]
[388875461,1759453992070,-1816.98588988,0.00018283,2]
[388875462,1759453995530,-633.23,0.00018281,2]
[388875463,1759453995558,-3253.19411012,0.00018283,2]
[388875464,1759453995585,-166.02718492,0.00018283,2]
[388875465,1759453995611,-500.0,0.00018283,2]
[388875466,1759453995691,-895.10740992,0.00018283,2]
[388875467,1759453995721,-147.30259008,0.00018283,2]
[388875468,1759453995748,-500.0,0.00018283,2]
[388875469,1759453995776,-1430.57,0.00018283,2]
[388875470,1759453995803,-500.0,0.00018283,2]
[388875471,1759453995830,-500.0,0.00018283,2]
[388875472,1759453995856,-500.0,0.00018283,2]
[388875473,1759453995966,-2844.26481984,0.00018283,2]
[388875474,1759454003795,2307.7398101,0.00017773,7]
[388875475,1759454017997,355.02731033,0.00018183,2]
[388875479,1759454066796,312.0,0.00017999,2]
[388875480,1759454073036,312.0,0.00018111,2]
[388875481,1759454088977,312.0,0.00017999,2]
[388875482,1759454093836,10000.01,0.00018183,2]
[388875483,1759454093864,10000.01,0.00018183,2]
[388875484,1759454093891,10000.01,0.00018183,2]
[388875485,1759454093918,10000.01,0.00018183,2]
[388875486,1759454093947,10000.01,0.00018183,2]
[388875487,1759454093975,10000.01,0.00018183,2]
[388875488,1759454094003,10000.01,0.00018183,2]
[388875489,1759454094032,10000.01,0.00018183,2]
[388875490,1759454094059,10000.01,0.00018183,2]
[388875491,1759454094085,10000.01,0.00018183,2]
[388875492,1759454098105,954.46909229,0.00018011,2]
[388875493,1759454100887,5817.263407,0.00017283,2]
[388875494,1759454101674,200.0,0.00018182,2]
[388875495,1759454102023,300.0,0.00018182,2]
[388875496,1759454105542,1200.0,0.00018182,2]
[388875497,1759454119865,667.10600512,0.00018106,2]
[388875498,1759454121144,861.17149559,0.00018183,2]
[388875499,1759454121167,3184.35941212,0.00018183,2]
[388875500,1759454126531,371.72998078,0.00018083,2]
[388875501,1759454134382,484.35302537,0.00018182,2]
[388875502,1759454150983,5000.0,0.00018183,2]
[388875503,1759454162323,300.0,0.00018182,2]
[388875504,1759454166843,500.0,0.00018182,2]
[388875505,1759454177901,159.56758173,0.00018182,2]
[388875506,1759454177923,340.43241827,0.00018182,2]
[388875507,1759454182513,-6060.8104613,0.00018183,2]
[388875508,1759454182600,-10000.01,0.00018183,2]
[388875509,1759454182820,-10000.01,0.00018183,2]
[388875510,1759454182928,-10000.01,0.00018183,2]
[388875511,1759454183037,-10000.01,0.00018183,2]
[388875512,1759454183172,-10000.01,0.00018183,2]
[388875513,1759454183290,-10000.01,0.00018183,2]
[388875514,1759454184172,-10000.01,0.00018183,2]
[388875515,1759454184369,-10000.01,0.00018183,2]
[388875516,1759454184473,-10000.01,0.00018183,2]
[388875517,1759454184584,-10000.01,0.00018183,2]
[388875518,1759454225477,300.0,0.00018182,2]
[388875519,1759454228714,465.35277729,0.00018182,2]
[388875521,1759454282818,300.0,0.00018182,2]
[388875522,1759454298272,369.39581693,0.00018128,2]
[388875523,1759454304008,591.10972819,0.00017435,2]
[388875524,1759454305815,2362.07447384,0.00017435,2]
[388875525,1759454333210,500.0,0.00018182,2]
[388875526,1759454334242,423.0,0.00018127,2]
[388875527,1759454335377,500.0,0.00018182,2]
[388875528,1759454339431,500.0,0.00018182,2]
[388875529,1759454342592,300.0,0.00018182,2]
[388875530,1759454345790,-1000.0,0.00018183,2]
[388875531,1759454345929,-1389.07720375,0.00018183,2]
[388875532,1759454346119,-10000.01,0.00018183,2]
[388875533,1759454347710,-10000.01,0.00018183,2]
[388875534,1759454349682,-500.0,0.00018182,2]
[388875535,1759454358089,500.0,0.00018182,2]
[388875536,1759454408819,166.0,0.00018183,2]
[388875537,1759454418710,500.0,0.00018182,2]
[388875538,1759454444510,1623.6672191,0.00017863,7]
[388875541,1759454460783,533.68480408,0.00018182,2]
[388875542,1759454461488,500.0,0.00018182,2]
[388875553,1759454510511,500.0,0.00018182,2]
[388875554,1759454511443,500.0,0.00018182,2]
[388875555,1759454511684,4176.65797682,0.00018183,2]
[388875556,1759454511705,823.34202318,0.00018183,2]
[388875558,1759454527022,890.47,0.00018182,2]
[388875559,1759454527423,-3169.15829863,0.00018183,2]
[388875560,1759454527690,-3661.69340274,0.00018183,2]
[388875561,1759454534113,2676.62319452,0.00018183,2]
[388875562,1759454534136,2323.37680548,0.00018183,2]
[388875563,1759454565473,10000.01,0.00018182,2]
[388875564,1759454565498,10000.01,0.00018182,2]
[388875565,1759454565520,10000.01,0.00018182,2]
[388875566,1759454565541,10000.01,0.00018182,2]
[388875567,1759454565563,10000.01,0.00018182,2]
[388875568,1759454565588,10000.01,0.00018182,2]
[388875569,1759454565608,10000.01,0.00018182,2]
[388875570,1759454565629,10000.01,0.00018182,2]
[388875571,1759454572634,-7947.89137956,0.00018182,2]
[388875572,1759454573703,-10000.01,0.00018182,2]
[388875573,1759454573827,-10000.01,0.00018182,2]
[388875574,1759454573950,-10000.01,0.00018182,2]
[388875575,1759454574138,-10000.01,0.00018182,2]
[388875576,1759454574260,-10000.01,0.00018182,2]
[388875577,1759454574355,-10000.01,0.00018182,2]
[388875578,1759454574484,-10000.01,0.00018182,2]
[388875579,1759454574595,-10000.01,0.00018182,2]
[388875580,1759454574699,-10000.01,0.00018182,2]
[388875581,1759454577701,-10000.01,0.00018182,2]
[388875582,1759454578572,839.78474358,0.00018011,2]
[388875583,1759454586385,5000.0,0.00018011,2]
[388875584,1759454594433,476.75739044,0.00018011,2]
[388875585,1759454602248,5000.0,0.00018011,2]
[388875586,1759454610913,5000.0,0.00018011,2]
[388875587,1759454626280,5000.0,0.00018011,2]
[388875588,1759454640844,2000.0,0.00016269,2]
[388875589,1759454642436,2000.0,0.00017639,2]
[388875590,1759454649424,5000.0,0.00018011,2]
[388875591,1759454666010,3527.44464887,0.00018006,2]
[388875592,1759454672827,5000.0,0.00018011,2]
[388875593,1759454695390,5000.0,0.00018011,2]
[388875594,1759454718206,5000.0,0.00018011,2]
[388875595,1759454721666,666.0,0.00017205,2]
[388875596,1759454721754,163.09328544,0.00018006,2]
[388875597,1759454740561,5000.0,0.00018011,2]
[388875600,1759454763697,5000.0,0.00018011,2]
[388875601,1759454786730,5000.0,0.00018011,2]
[388875602,1759454799200,1427.95171339,0.00017944,2]
[388875603,1759454809012,5000.0,0.00018011,2]
[388875604,1759454831343,5000.0,0.00018011,2]
[388875605,1759454853687,4950.60468338,0.00018011,2]
[388875607,1759454860566,1377.4482762,0.00017181,2]
[388875611,1759455005979,191.87358829,0.00018011,2]
[388875612,1759455022156,315.5450777,0.00023288,30]
[388875618,1759455031966,-1220.10778018,0.00018082,2]
[388875619,1759455031976,-1000.0,0.00018082,2]
[388875620,1759455031986,-419.60300613,0.00018082,2]
[388875621,1759455031995,-1200.0,0.00018149,2]
[388875622,1759455032005,-1220.10778018,0.00018151,2]
[388875623,1759455032014,-300.0,0.00018171,2]
[388875624,1759455032023,-1033.2,0.00018172,3]
[388875625,1759455032032,-516.6,0.00018172,3]
[388875626,1759455032041,-258.3,0.00018172,3]
[388875627,1759455032050,-774.93,0.00018172,3]
[388875628,1759455032059,-500.0,0.0001818,2]
[388875629,1759455032068,-500.0,0.0001818,2]
[388875630,1759455032076,-413.39857517,0.0001818,2]
[388875631,1759455032085,-464.93268315,0.0001818,2]
[388875632,1759455032094,-500.0,0.0001818,2]
[388875633,1759455032102,-579.3,0.0001818,2]
[388875634,1759455032111,-1355.52,0.0001818,2]
[388875635,1759455032120,-500.0,0.0001818,2]
[388875636,1759455032128,-2216.76,0.0001818,2]
[388875637,1759455032137,-853.37,0.0001818,2]
[388875638,1759455032146,-21200.5311913,0.0001818,2]
[388875639,1759455032154,-659.33,0.0001818,2]
[388875640,1759455032162,-72.74781131,0.0001818,2]
[388875641,1759455032195,-427.25218869,0.0001818,2]
[388875642,1759455032204,-42.16813769,0.0001818,2]
[388875643,1759455032215,-457.83186231,0.0001818,2]
[388875644,1759455032223,-500.0,0.0001818,2]
[388875645,1759455032232,-500.0,0.0001818,2]
[388875646,1759455032241,-500.0,0.0001818,2]
[388875647,1759455032250,-3109.33,0.0001818,2]
[388875648,1759455032259,-500.0,0.0001818,2]
[388875649,1759455032267,-502.03506165,0.0001818,2]
[388875650,1759455032278,-500.0,0.0001818,2]
[388875651,1759455032287,-500.0,0.0001818,2]
[388875652,1759455032297,-500.0,0.0001818,2]
[388875653,1759455032307,-500.0,0.0001818,2]
[388875654,1759455032316,-3462.20535778,0.0001818,3]
[388875676,1759455037912,-520.57953427,0.0001818,2]
[388875677,1759455037922,-509.97983898,0.0001818,2]
[388875678,1759455037931,-467.44097711,0.0001818,2]
[388875679,1759455037942,-645.27500544,0.0001818,2]
[388875681,1759455037952,-500.0,0.0001818,2]
[388875683,1759455037962,-88.12316222,0.0001818,2]
[388875702,1759455046469,471.36566096,0.00017432,2]
[388875833,1759455048119,1883.57718121,0.00017432,2]
[388875939,1759455050260,494.9,0.0002876,120]
[388875970,1759455073369,2000.0,0.00016263,2]
[388875971,1759455074952,2000.0,0.00017633,2]
[388875972,1759455085324,172.0,7.9e-07,2]
[388875973,1759455086354,172.0,7.9e-07,2]
[388875974,1759455087414,172.0,7.9e-07,2]
[388875975,1759455135773,167.4235016,8.591e-05,2]
[388875990,1759455206419,165.04515383,0.00017982,2]
[388875991,1759455216270,1197.92987484,0.00017432,2]
[388875992,1759455218431,4791.71949934,0.00017432,2]
[388875993,1759455245182,14357.5944955,0.00017181,2]
[388875997,1759455307205,-1056.36590654,0.00018082,2]
[388875998,1759455307234,-368.43971979,0.00018082,2]
[388875999,1759455307263,-1000.0,0.00018082,2]
[388876000,1759455307291,-1056.36590651,0.00018151,2]
[388876001,1759455307321,-300.0,0.00018179,2]
[388876002,1759455307349,-500.0,0.00018179,2]
[388876003,1759455307376,-500.0,0.00018179,2]
[388876004,1759455307844,-437.66693432,0.00018179,2]
[388876005,1759455310887,-1200.0,0.00018149,2]
[388876006,1759455310917,-62.33306568,0.00018179,2]
[388876007,1759455310947,-500.0,0.00018179,2]
[388876008,1759455310975,-500.0,0.00018179,2]
[388876009,1759455311002,-512.82575545,0.00018179,2]
[388876010,1759455311029,-500.0,0.00018179,2]
[388876011,1759455311059,-500.0,0.00018179,2]
[388876012,1759455311087,-500.0,0.00018179,2]
[388876013,1759455311114,-500.0,0.00018179,2]
[388876014,1759455311325,-449.69235774,0.00018179,2]
[388876015,1759455314876,-123.20908504,0.00018179,2]
[388876016,1759455314905,-500.0,0.00018179,2]
[388876017,1759455314933,-231.58797646,0.00018179,2]
[388876018,1759455314961,-497.48209494,0.00018179,2]
[388876019,1759455314990,-300.0,0.00018179,2]
[388876020,1759455315016,-500.0,0.0001818,2]
[388876021,1759455315043,-500.0,0.0001818,2]
[388876022,1759455315069,-500.0,0.0001818,2]
[388876023,1759455315096,-598.66,0.0001818,2]
[388876024,1759455315123,-500.0,0.0001818,2]
[388876025,1759455315149,-352.39168712,0.0001818,2]
[388876026,1759455315666,-793.34831288,0.0001818,2]
[388876027,1759455315720,4112.3621045,0.00018011,2]
[388876029,1759455323502,1470.62213269,0.00018011,2]
[388876030,1759455338742,1672.77041188,0.00018011,2]
[388876031,1759455364027,1500.0,0.00016438,2]
[388876033,1759455484757,161.7,0.00015135,2]
[388876034,1759455485039,161.7,0.00015135,2]
[388876035,1759455485354,161.7,0.00015135,2]
[388876038,1759455559340,-800.0,0.00018031,2]
[388876039,1759455559368,-396.17696811,0.0001808,2]
[388876040,1759455559395,-1000.0,0.0001808,2]
[388876041,1759455559421,-760.72513383,0.00018081,2]
[388876042,1759455559448,-800.0,0.00018094,2]
[388876043,1759455559475,-760.72513381,0.00018149,2]
[388876044,1759455559510,-300.0,0.00018169,2]
[388876045,1759455559664,-364.7555285,0.0001817,2]
[388876046,1759455560308,-500.0,0.00018169,2]
[388876047,1759455560355,-9000.01,0.0001817,2]
[388876048,1759455560554,-10000.01,0.0001817,2]
[388876049,1759455560771,-3759.298157,0.0001817,2]
[388876050,1759455560804,-2481.413686,0.0001817,2]
[388876051,1759455561452,-311.2,0.00018171,3]
[388876052,1759455561488,-155.6,0.00018171,3]
[388876053,1759455561523,-1659.74,0.00018172,3]
[388876054,1759455561558,-2489.61,0.00018172,3]
[388876055,1759455561675,-767.71,0.00018172,3]
[388876056,1759455563119,-477.09,0.00018172,3]
[388876057,1759455563161,-622.4,0.00018172,3]
[388876058,1759455563200,-253.17008274,0.00018172,2]
[388876059,1759455563242,-224.35040597,0.00018178,2]
[388876060,1759455563284,-500.0,0.00018179,2]
[388876061,1759455563323,-500.0,0.00018179,2]
[388876062,1759455563359,-555.56,0.00018179,2]
[388876063,1759455563399,-500.0,0.00018179,2]
[388876064,1759455563435,-1299.88,0.00018179,2]
[388876065,1759455563564,-2124.96,0.00018179,2]
[388876066,1759455563593,-818.76,0.00018179,2]
[388876067,1759455563622,-638.65,0.00018179,2]
[388876068,1759455564024,-500.0,0.00018179,2]
[388876069,1759455564055,-598.79419743,0.00018179,2]
[388876070,1759455564444,-3598.0,0.00018179,2]
[388876071,1759455564470,-500.0,0.00018179,2]
[388876072,1759455564496,-500.0,0.00018179,2]
[388876073,1759455564523,-304.01,0.00018179,2]
[388876074,1759455564613,170.79872179,0.00018011,2]
[388876075,1759455564962,-195.99,0.00018179,2]
[388876076,1759455564971,-304.01,0.00018179,2]
[388876077,1759455564989,-500.0,0.00018179,2]
[388876078,1759455567193,-466.85,0.00018172,3]
[388876079,1759455567220,-1329.54,0.00018179,2]
[388876080,1759455567247,-511.55,0.00018179,2]
[388876081,1759455567272,-500.0,0.00018179,2]
[388876082,1759455567301,-500.0,0.00018179,2]
[388876083,1759455567327,-210.77202544,0.00018179,2]
[388876084,1759455567353,-503.99088679,0.0001818,2]
[388876085,1759455567378,-500.0,0.0001818,2]
[388876086,1759455567404,-454.60417554,0.0001818,2]
[388876087,1759455567523,-45.39582446,0.0001818,2]
[388876088,1759455571230,-500.0,0.0001818,2]
[388876089,1759455571257,-500.0,0.0001818,2]
[388876090,1759455571285,-500.0,0.0001818,2]
[388876091,1759455571311,-500.0,0.0001818,2]
[388876092,1759455571338,-597.51,0.0001818,2]
[388876093,1759455571365,-500.0,0.0001818,2]
[388876094,1759455571392,-500.0,0.0001818,2]
[388876095,1759455571419,-691.77,0.0001818,2]
[388876096,1759455571812,5000.0,0.00018011,2]
[388876097,1759455571854,-1421.45,0.0001818,2]
[388876099,1759455579968,4549.65397196,0.00018011,2]
[388876101,1759455595802,1189.65723472,0.00018011,2]
[388876109,1759455780554,-346.65484707,0.00018079,2]
[388876110,1759455780581,-1344.02,0.0001816,2]
[388876111,1759455780607,-300.0,0.00018168,2]
[388876112,1759455780633,-500.0,0.00018169,2]
[388876113,1759455780659,-500.0,0.00018169,2]
[388876114,1759455780686,-500.0,0.00018169,2]
[388876115,1759455780713,-500.0,0.00018169,2]
[388876116,1759455780739,-500.0,0.00018169,2]
[388876117,1759455780765,-234.02030586,0.00018169,2]
[388876118,1759455781171,-550.61969414,0.00018169,2]
[388876119,1759455784554,-300.0,0.00018168,2]
[388876120,1759455784582,-500.0,0.00018169,2]
[388876121,1759455784610,-547.65,0.00018169,2]
[388876122,1759455784638,-3448.09,0.00018169,2]
[388876123,1759455784729,-408.53,0.00018169,2]
[388876124,1759455788551,-2074.64,0.00018169,2]
[388876125,1759455788580,-567.99,0.00018169,2]
[388876126,1759455788608,-500.0,0.00018169,2]
[388876127,1759455788635,-500.0,0.00018169,2]
[388876128,1759455788661,-1077.17,0.00018169,2]
[388876131,1759455947916,253.4,0.00028767,120]
[388876132,1759456004949,303.32299123,0.0001798,2]
[388876139,1759456232181,-305.86803484,0.00018068,2]
[388876485,1759456238016,-654.21663662,0.00018068,2]
[388876486,1759456238076,-239.91532854,0.00018068,2]
[388876487,1759456238085,-300.0,0.00018069,2]
[388876488,1759456238095,-456.43508031,0.00018069,2]
[388876489,1759456238104,-300.0,0.00018069,2]
[388876490,1759456238113,-300.0,0.00018069,2]
[388876491,1759456238122,-300.0,0.00018069,2]
[388876492,1759456238132,-166.0,0.00018069,2]
[388876493,1759456238141,-2161.11,0.0001807,3]
[388876494,1759456238149,-122.59691487,0.0001807,3]
[388876526,1759456246026,-957.96308513,0.0001807,3]
[388876527,1759456246036,-174.16691487,0.0001807,3]
[388876549,1759456290487,265.4076173,0.00017979,2]
[388876550,1759456348860,808.5598485,0.0001722,2]
[388876551,1759456353182,207.86433153,0.0001797,3]
[388876563,1759456436570,13450.36938127,0.00017989,2]
[388876564,1759456447207,242.743836,0.00017079,2]
[388876565,1759456506207,365.14806424,0.00017979,2]
[388876566,1759456508254,365.14806422,0.00018004,2]
[388876567,1759456519787,771.0,0.00018,2]
[388876568,1759456540509,5463.0,0.00017719,2]
[388876569,1759456543528,5463.0,0.00017857,2]
[388876570,1759456546697,5463.0,0.00017861,2]
[388876571,1759456570771,326.02655533,0.00017977,2]
[388876573,1759456631322,250.0,0.00017841,2]
[388876574,1759456696542,8966.91292084,0.0001798,2]
[388876576,1759456726915,496.05238344,0.00017369,2]
[388876577,1759456728748,1982.22532423,0.00017369,2]
[388876579,1759456742486,1000.0,0.00017074,2]
[388876580,1759456773190,164.47794807,0.00024767,30]
[388876583,1759456844493,219.08883854,0.00017977,2]
[388876584,1759456847007,219.08883853,0.00018,2]
[388876585,1759456851004,285.27323587,0.00017975,2]
[388876586,1759456862642,868.49661588,0.00017369,2]
[388876587,1759456864731,3470.51247706,0.00017369,2]
[388876596,1759456956774,5977.94194724,0.00017979,2]
[388876597,1759456966559,28027.89,0.00018,2]
[388876598,1759456982924,200.0,0.00028215,120]
[388876599,1759457017852,567.0,0.00017828,2]
[388876600,1759457023315,567.0,0.00017779,2]
[388876602,1759457134368,249.61408143,0.00017973,2]
[388876604,1759457142666,-219.08883853,0.00018023,2]
[388876605,1759457142693,-1000.0,0.00018023,2]
[388876606,1759457142720,-1200.0,0.00018029,2]
[388876607,1759457142748,-1200.0,0.00018029,2]
[388876608,1759457142776,-300.0,0.00018029,2]
[388876609,1759457142805,-500.0,0.0001803,2]
[388876610,1759457142831,-500.0,0.0001803,2]
[388876611,1759457142955,-161.83232294,0.0001803,2]
[388876612,1759457144678,-338.16767706,0.0001803,2]
[388876613,1759457144707,-500.0,0.0001803,2]
[388876614,1759457144740,-500.0,0.0001803,2]
[388876615,1759457144767,-219.08883853,0.00018046,2]
[388876616,1759457144848,-6885.49696882,0.00018046,2]
[388876617,1759457148886,-10000.01,0.00018046,2]
[388876618,1759457150262,554.0,0.00028767,120]
[388876619,1759457159885,64809.89438997,0.00017977,2]
[388876620,1759457179465,219.08883853,0.00017975,2]
[388876621,1759457217348,3985.29463148,0.00017979,2]
[388876622,1759457225668,168.0,0.00017991,2]
[388876623,1759457226319,-300.0,0.00018045,2]
[388876624,1759457226360,-9400.01,0.00018046,2]
[388876625,1759457230167,-10000.01,0.00018046,2]
[388876629,1759457284540,154.73,0.00015135,2]
[388876630,1759457284822,154.73,0.00015135,2]
[388876631,1759457285151,154.73,0.00015135,2]
[388876632,1759457293224,12469.2721383,0.0001599,2]
[388876634,1759457324520,159199.78448892,0.00017974,2]
[388876636,1759457330921,166.2672781,0.00017207,2]
[388876637,1759457369457,-300.0,0.00018044,2]
[388876638,1759457369490,-1200.0,0.00018045,2]
[388876639,1759457369873,-532.41,0.00018045,2]
[388876640,1759457369902,-1245.72,0.00018045,2]
[388876641,1759457369927,-500.0,0.00018045,2]
[388876642,1759457369956,-406.03,0.00018045,2]
[388876643,1759457370184,-1631.69,0.00018045,2]
[388876644,1759457373378,-500.0,0.00018045,2]
[388876645,1759457373412,-397.95,0.00018065,3]
[388876646,1759457373443,-1591.81,0.00018066,3]
[388876647,1759457373475,-795.9,0.00018066,3]